lending/lending_fUSD_20240401
["ID","MTS","AMOUNT","RATE_DAILY","PERIOD"]
[321221331,1711987851159,-185.57468528,0.000659,120]
[321221332,1711987851168,-185.57468528,0.000659,120]
[321221333,1711987851178,-185.57468528,0.000659,120]
[321221334,1711987851188,-185.57468528,0.000659,120]
[321221335,1711987851197,-185.57468528,0.000659,120]
[321221336,1711987851206,-185.57468528,0.000659,120]
[321221337,1711987851216,-185.57468528,0.000659,120]
[321221338,1711987851225,-185.57468528,0.000659,120]
[321221339,1711987851235,-185.57468528,0.000659,120]
[321221340,1711987851244,-185.57468528,0.000659,120]
[321221341,1711987851254,-185.57468528,0.000659,120]
[321221342,1711987851263,-185.57468528,0.000659,120]
[321221343,1711987851272,-185.57468528,0.000659,120]
[321221344,1711987851282,-12483.81257,0.000659,30]
[321221345,1711987851291,-215.91961167,0.00065906,120]
[321221346,1711987851300,-351.0,0.00065919,60]
[321221347,1711987851310,-294.0,0.00065919,60]
[321221348,1711987851319,-20058.29747086,0.00065999,90]
[321221349,1711987851328,-200000.0,0.00066,66]
[321221350,1711987851340,-3548.68139429,0.00066,120]
[321221351,1711987851349,-151.0,0.00066,120]
[321221352,1711987851359,-93219.70533358,0.00066,120]
[321221353,1711987851368,-150.0,0.00066,120]
[321221354,1711987851377,-224.5319,0.00066,120]
[321221355,1711987851387,-7500.0,0.00066,120]
[321221356,1711987851396,-467.31095251,0.00066001,120]
[321221357,1711987851406,-177.47167385,0.00066001,120]
[321221358,1711987851415,-185.57468528,0.00066001,120]
[321221359,1711987851425,-5671.04911708,0.00066044,35]
[321221360,1711987851435,-155.05288456,0.00066138,120]
[321221361,1711987851445,-157.01297015,0.00066258,120]
[321221362,1711987851454,-1524.6105,0.00066267,14]
[321221363,1711987851463,-2000.0,0.00066267,14]
[321221364,1711987851472,-154.39,0.000663,12]
[321221365,1711987851481,-154.39,0.000663,12]
[321221366,1711987851490,-388.37,0.000663,12]
[321221367,1711987851500,-388.37,0.000663,12]
[321221368,1711987851510,-388.37,0.000663,12]
[321221369,1711987851519,-388.37,0.000663,12]
[321221370,1711987851529,-388.37,0.000663,12]
[321221371,1711987851538,-388.37,0.000663,12]
[321221372,1711987851548,-388.37,0.000663,12]
[321221373,1711987851558,-388.37,0.000663,12]
[321221374,1711987851567,-388.37,0.000663,12]
[321221375,1711987851577,-388.37,0.000663,12]
[321221376,1711987851589,-388.37,0.000663,12]
[321221377,1711987851598,-388.37,0.000663,12]
[321221378,1711987851607,-388.37,0.000663,12]
[321221379,1711987851618,-388.37,0.000663,12]
[321221380,1711987851629,-388.37,0.000663,12]
[321221381,1711987851638,-388.37,0.000663,12]
[321221382,1711987851647,-388.37,0.000663,12]
[321221383,1711987851657,-155.90767022,0.00066318,120]
[321221384,1711987851667,-174.52600393,0.00066392,70]
[321221385,1711987851676,-692166.07215621,0.000664,120]
[321221386,1711987851685,-303.63488174,0.00066443,60]
[321221387,1711987851695,-402.99999901,0.00066485,120]
[321221388,1711987851704,-572115.51312311,0.0006649,21]
[321221389,1711987851714,-79394.0995,0.00066492,2]
[321221390,1711987851724,-39869.9327,0.00066494,2]
[321221391,1711987851733,-100000.0,0.00066494,2]
[321221392,1711987851743,-1000.0,0.00066494,30]
[321221393,1711987851752,-464.0,0.000665,40]
[321221394,1711987851761,-156.93753585,0.000665,107]
[321221395,1711987851770,-150.0,0.000665,120]
[321221396,1711987851779,-464.0,0.000665,40]
[321221397,1711987851789,-464.0,0.000665,40]
[321221398,1711987851798,-509.0,0.000665,40]
[321221399,1711987851808,-326.80187265,0.000665,2]
[321221400,1711987851817,-1852.76989265,0.000665,2]
[321221401,1711987851826,-467.81,0.000665,120]
[321221402,1711987851838,-177.97,0.000665,120]
[321221403,1711987851848,-186.07,0.000665,120]
[321221404,1711987851858,-490.36643496,0.000665,30]
[321221405,1711987851868,-4789.19966722,0.000665,2]
[321221406,1711987851877,-103404.1287511,0.00066554,4]
[321221407,1711987851887,-100557.0157994,0.00066554,4]
[321221408,1711987851896,-97709.9028476,0.00066554,4]
[321221409,1711987851906,-94862.7898958,0.00066554,4]
[321221410,1711987851916,-92015.676944,0.00066554,4]
[321221411,1711987851925,-150.0,0.0006656,99]
[321221412,1711987851936,-956.36766665,0.00066592,7]
[321221413,1711987851946,-730.73671556,0.00066592,7]
[321221414,1711987851955,-3674.74213021,0.00066594,120]
[321221415,1711987851964,-183.0931,0.00066594,120]
[321221416,1711987851974,-5503690.09099761,0.00066594,120]
[321221417,1711987851983,-187.63186394,0.00066598,7]
[321221418,1711987851992,-889.48040726,0.00066598,120]
[321221419,1711987852001,-5751.13615902,0.00066598,7]
[321221420,1711987852010,-155.81320087,0.00066598,7]
[321221421,1711987852019,-347.42024703,0.00066598,4]
[321221422,1711987852028,-106251.2417029,0.00066598,4]
[321221423,1711987852038,-2468.82588632,0.00066599,14]
[321221424,1711987852047,-237.50769212,0.00066599,120]
[321221425,1711987852057,-1000.0,0.00066599,120]
[321221426,1711987852066,-151904.42869223,0.000666,30]
[321221427,1711987852085,-25101.08325644,0.000666,30]
[321221428,1711987852101,-831.92,0.00056438,120]
[321221429,1711987852110,-348.68159927,0.000666,30]
[321221430,1711987852122,-80596.42335172,0.000666,30]
[321221431,1711987852139,-131470.24507197,0.000666,30]
[321221432,1711987852151,-300.32,0.000666,30]
[321221433,1711987852238,-1629.62751482,0.0004304,2]
[321221434,1711987852249,-500.0,0.00054794,120]
[321221435,1711987852261,-500.0,0.00054794,120]
[321221436,1711987852271,-500.0,0.00055068,120]
[321221437,1711987852280,-264.97123526,0.00056712,120]
[321221438,1711987852292,-566.94876474,0.00056712,120]
[321221439,1711987852301,-184.72412177,0.00056986,120]
[321221440,1711987852406,-25.68042855,0.00054794,120]
[321221441,1711987852419,-474.31957145,0.00054794,120]
[321221442,1711987852428,-211.80994855,0.00055068,120]
[321221443,1711987852442,-288.19005145,0.00055068,120]
[321221444,1711987852453,-500.0,0.00055342,120]
[321221445,1711987852465,-78.1450017,0.00056986,120]
[321221446,1711987852482,-569.05087653,0.00056986,120]
[321221447,1711987852494,-831.92,0.0005726,120]
[321221448,1711987852504,-399.02399784,0.00057534,120]
[321221449,1711987852678,-500.0,0.00043139,31]
[321221450,1711987852688,-503.68173203,0.00043139,31]
[321221451,1711987852698,-174.05766826,0.00043278,4]
[321221452,1711987852709,-253.72,0.0005499,10]
[321221453,1711987852719,-500.0,0.00055068,120]
[321221454,1711987852729,-500.0,0.00055342,120]
[321221455,1711987852739,-500.0,0.00055342,120]
[321221456,1711987852748,-500.0,0.00055616,120]
[321221457,1711987852758,-500.0,0.00055616,120]
[321221458,1711987852768,-500.0,0.00055616,120]
[321221459,1711987852778,-373.23,0.0005589,120]
[321221460,1711987852788,-432.89600216,0.00057534,120]
[321221461,1711987852797,-831.92,0.00057808,120]
[321221462,1711987852807,-831.92,0.00058082,120]
[321221463,1711987852817,-831.92,0.00058356,120]
[321221464,1711987852826,-831.92,0.0005863,120]
[321221465,1711987852837,-831.92,0.00058904,120]
[321221466,1711987852846,-831.92,0.00059178,120]
[321221467,1711987852855,-831.92,0.00059452,120]
[321221468,1711987852864,-831.92,0.00059726,120]
[321221469,1711987852874,-831.92,0.00059999,120]
[321221470,1711987852885,-831.92,0.00060273,120]
[321221471,1711987852895,-831.92,0.00060547,120]
[321221472,1711987852906,-831.92,0.00060821,120]
[321221473,1711987852917,-889.22087445,0.00061144,2]
[321221474,1711987852927,-853016.63732669,0.000666,30]
[321221475,1711987852952,-831.95892444,0.00061095,120]
[321221476,1711987852962,-5148.55847233,0.000666,30]
[321221477,1711987852975,-3782.68297278,0.000666,30]
[321221478,1711987852986,-11977.44366,0.000666,30]
[321221479,1711987853028,-654.70844405,0.000666,30]
[321221480,1711987853135,-7549.23202736,0.000666,30]
[321221481,1711987853151,-34275.94297594,0.000666,30]
[321221482,1711987853163,-7487.07920779,0.000666,30]
[321221483,1711987853175,-683.479842,0.000666,30]
[321221484,1711987853189,-1383.80611967,0.000666,30]
[321221485,1711987854240,-1629.62751478,0.00045646,2]
[321221486,1711987854249,-889.22087445,0.00066498,2]
[321221487,1711987854259,-6266.63041299,0.000666,30]
[321221488,1711987854272,-99498.03397504,0.000666,30]
[321221489,1711987854384,-156.90238505,0.00043039,4]
[321221490,1711987854394,-500.0,0.00054794,120]
[321221491,1711987854403,-500.0,0.00054794,120]
[321221492,1711987854413,-210.71761495,0.00054794,120]
[321221493,1711987854425,-289.28238505,0.00054794,120]
[321221494,1711987854434,-548.99820441,0.00054794,120]
[321221495,1711987854444,-500.0,0.00055068,120]
[321221496,1711987854453,-500.0,0.00055068,120]
[321221497,1711987854462,-500.0,0.00055342,120]
[321221498,1711987854472,-500.0,0.00055342,120]
[321221499,1711987854481,-500.0,0.00055616,120]
[321221500,1711987854491,-499.99,0.000557,2]
[321221501,1711987854500,-500.0,0.0005589,120]
[321221502,1711987854509,-262.56,0.00056164,120]
[321221503,1711987854519,-5800.0,0.00059675,18]
[321221504,1711987854528,-58144.16941061,0.000666,30]
[321221505,1711987854540,-1704.227525,0.000666,30]
[321221506,1711987854604,-70410.70050657,0.000666,30]
[321221507,1711987854618,-16285.03617993,0.000666,30]
[321221508,1711987854632,-13826.39445488,0.000666,30]
[321221509,1711987854648,-461.07273652,0.000665,120]
[321221510,1711987854657,-267.52722056,0.000666,30]
[321221511,1711987854752,-68409.37578596,0.000666,30]
[321221512,1711987854774,-152141.40351108,0.000666,30]
[321221513,1711987854786,-68999.9999992,0.000666,30]
[321221514,1711987854799,-306.04443341,0.000666,30]
[321221515,1711987854812,-3424.15,0.000666,30]
[321221516,1711987854823,-3301.72021198,0.000666,30]
[321221517,1711987854836,-413.07565532,0.000666,30]
[321221521,1711987895100,-2827.82158598,0.0004,4]
[321221523,1711988056516,300.0,0.000399,2]
[321221525,1711988098870,164.45,0.00037808,2]
[321221539,1711988221589,397.35416772,0.00037808,2]
[321221540,1711988235615,397.08825051,0.00037808,2]
[321221541,1711988258610,968.18466913,0.00037808,4]
[321221542,1711988265718,338.95944776,0.00037808,4]
[321221567,1711988360593,350.0,0.00033,3]
[321221568,1711988361668,400.0,0.00035,3]
[321221569,1711988363035,450.0,0.00037,3]
[321221570,1711988364129,500.0,0.00039,3]
[321221573,1711988463223,17906.1418789,0.00039,4]
[321221589,1711988708070,-159.90216245,0.000389,2]
[321221590,1711988708101,-3204.3543578,0.00038999,2]
[321221591,1711988708130,-4281.97455348,0.00039,4]
[321221592,1711988708160,-18255.19446614,0.00039998,2]
[321221593,1711988708189,-294.62186938,0.00039998,2]
[321221594,1711988708221,-73803.95259075,0.0004,120]
[321221595,1711988752201,-18255.19446614,0.00039999,2]
[321221596,1711988752229,-6196.04740925,0.0004,120]
[321221597,1711988754288,15277.32164327,0.00039,2]
[321221608,1711988818133,-362.42414368,0.00040718,4]
[321221609,1711988818154,-7.8223483,0.00041,3]
[321221645,1711989032599,-542.1776517,0.00041,3]
[321221646,1711989032609,-893.5695,0.00042839,2]
[321221647,1711989032619,-261.9819483,0.00042939,2]
[321221648,1711989032723,-2723.0508517,0.00042939,2]
[321221649,1711989032742,-600.0,0.00043,3]
[321221650,1711989032756,-885.73321694,0.00043038,4]
[321221651,1711989032766,-2426.83843557,0.00043039,4]
[321221652,1711989032777,-182.0,0.00043836,2]
[321221653,1711989032789,-650.0,0.00045,3]
[321221654,1711989032800,-416.98,0.00046749,2]
[321221655,1711989032810,-159.90216244,0.00046897,2]
[321221656,1711989032823,-700.0,0.00047,3]
[321221657,1711989032837,-411.29,0.00047,10]
[321221658,1711989032848,-851.49,0.00047,2]
[321221659,1711989032860,-499.99,0.00047,2]
[321221660,1711989032873,-573.55644855,0.0004747,2]
[321221661,1711989032884,-2654.54776481,0.00048543,2]
[321221686,1711989037905,-4295.32223519,0.00048543,2]
[321221688,1711989037917,-2751.0,0.00048634,120]
[321221690,1711989037927,-200.0,0.00048666,2]
[321221692,1711989037938,-250.0,0.0004876,112]
[321221695,1711989037949,-151.38,0.00048769,2]
[321221697,1711989037960,-750.0,0.00049,3]
[321221699,1711989037971,-416.98,0.00049012,2]
[321221701,1711989037982,-250.0,0.00049156,120]
[321221703,1711989037993,-23900.0,0.00049373,2]
[321221706,1711989038004,-500.0,0.00049373,2]
[321221708,1711989038015,-250.0,0.00049416,120]
[321221710,1711989038027,-470.17,0.00049479,120]
[321221712,1711989038037,-711.28,0.00049535,2]
[321221714,1711989038048,-175.98,0.00049575,2]
[321221716,1711989038058,-500.0,0.00049595,2]
[321221717,1711989038069,-200.0,0.00049634,2]
[321221718,1711989038080,-175.98,0.00049711,2]
[321221719,1711989038091,-175.98,0.00049847,2]
[321221720,1711989038101,-5390.7725,0.0004987,2]
[321221721,1711989038112,-254.9915,0.00049899,2]
[321221722,1711989038122,-6864.8454,0.00049899,2]
[321221723,1711989038132,-39184.22632569,0.000499,2]
[321221724,1711989038143,-245.51822448,0.00049969,2]
[321221725,1711989038154,-175.98,0.00049983,2]
[321221726,1711989038164,-320.88,0.00049989,10]
[321221727,1711989038175,-20863.07938988,0.00049999,2]
[321221728,1711989038185,-837.58163407,0.0005,2]
[321221729,1711989038196,-27070.10563861,0.0005,4]
[321221730,1711989038210,-151.0,0.0005,120]
[321221731,1711989038221,-2199.25,0.00050041,2]
[321221732,1711989038232,-150.0,0.0005007,2]
[321221733,1711989038243,-175.98,0.00050119,2]
[321221734,1711989038254,-150.99,0.00050136,2]
[321221735,1711989038265,-164.45,0.00050205,2]
[321221736,1711989038275,-175.98,0.00050255,2]
[321221737,1711989038287,-870.49805177,0.00050336,2]
[321221738,1711989038299,-175.98,0.00050391,2]
[321221739,1711989038311,-7609.07904511,0.00050436,120]
[321221740,1711989038333,-31575.14728057,0.00050436,120]
[321221741,1711989038344,-2500.0,0.00050449,2]
[321221742,1711989038357,-49.85271943,0.00050527,2]
[321221744,1711989038371,-126.12728057,0.00050527,2]
[321221746,1711989038382,-175.98,0.00050663,2]
[321221747,1711989038393,-3249.6119,0.000507,2]
[321221762,1711989038663,-175.98,0.00050799,2]
[321221764,1711989038675,-500.0,0.000509,2]
[321221766,1711989038685,-209.0901,0.000509,2]
[321221768,1711989038694,-432.8561,0.000509,2]
[321221770,1711989038704,-443.8109,0.000509,2]
[321221772,1711989038714,-1019.96157261,0.000509,120]
[321221774,1711989038724,-175.98,0.00050935,2]
[321221776,1711989038733,-39184.22632568,0.00050971,120]
[321221778,1711989038743,-327.03,0.0005099,2]
[321221780,1711989038752,-67000.00000001,0.00051,2]
[321221783,1711989038762,-45000.0,0.00051,120]
[321221785,1711989038772,-175.98,0.00051071,2]
[321221787,1711989038781,-175.98,0.00051207,2]
[321221789,1711989038791,-416.98,0.00051276,2]
[321221791,1711989038801,-175.98,0.00051343,2]
[321221793,1711989038811,-167.4,0.00051364,120]
[321221795,1711989038822,-168.45,0.00051478,2]
[321221797,1711989038833,-200.0,0.00051478,2]
[321221799,1711989038842,-175.98,0.00051479,2]
[321221801,1711989038851,-175.98,0.00051615,2]
[321221802,1711989038861,-175.98,0.00051751,2]
[321221805,1711989038871,-2061.1475,0.00051798,2]
[321221806,1711989038882,-14210.7794,0.00051798,2]
[321221808,1711989038894,-983.40892492,0.00051879,4]
[321221810,1711989038904,-196.45,0.00051879,2]
[321221812,1711989038915,-175.98,0.00051887,2]
[321221815,1711989038925,-445.96,0.00051889,2]
[321221817,1711989038936,-1000.0,0.00051897,60]
[321221819,1711989038946,-445.96,0.00051903,2]
[321221821,1711989038956,-445.96,0.00051916,2]
[321221823,1711989038966,-445.96,0.0005193,2]
[321221824,1711989038976,-445.96,0.00051944,2]
[321221827,1711989038991,-445.96,0.00051957,2]
[321221828,1711989039002,-445.96,0.00051971,2]
[321221831,1711989039012,-445.96,0.00051985,2]
[321221832,1711989039022,-2840.8521,0.00051994,2]
[321221834,1711989039034,-29325.5894,0.00051994,2]
[321221836,1711989039044,-445.96,0.00051998,2]
[321221838,1711989039055,-1487.5307093,0.00052,120]
[321221840,1711989039066,-445.96,0.00052012,2]
[321221842,1711989039077,-175.98,0.00052023,2]
[321221844,1711989039087,-445.96,0.00052026,2]
[321221847,1711989039098,-445.96,0.00052039,2]
[321221849,1711989039108,-445.96,0.00052053,2]
[321221851,1711989039120,-445.96,0.00052066,2]
[321221853,1711989039130,-445.96,0.0005208,2]
[321221855,1711989039139,-445.96,0.00052094,2]
[321221857,1711989039150,-445.96,0.00052107,2]
[321221859,1711989039161,-445.96,0.00052121,2]
[321221861,1711989039171,-445.96,0.00052135,2]
[321221863,1711989039181,-445.96,0.00052148,2]
[321221864,1711989039191,-175.98,0.00052159,2]
[321221867,1711989039202,-1000.0,0.00052495,2]
[321221869,1711989039212,-367.82,0.00052719,120]
[321221870,1711989039222,-2199.25,0.00052781,2]
[321221872,1711989039233,-416.98,0.0005354,2]
[321221874,1711989039242,-176.9,0.00053679,2]
[321221877,1711989039252,-151.38,0.00053719,120]
[321221879,1711989039268,-1000.0,0.00053723,120]
[321221882,1711989039282,-180.0,0.00053834,120]
[321221884,1711989039292,-1500.6,0.00054185,120]
[321221886,1711989039302,-316.05987208,0.00054289,2]
[321221888,1711989039313,-174.14017309,0.0005429,2]
[321221890,1711989039322,-327.03,0.0005438,2]
[321221892,1711989039334,-149756.4294,0.0005439,2]
[321221894,1711989039344,-1611.1041,0.0005439,2]
[321221896,1711989039354,-19089.15219987,0.0005449,10]
[321221898,1711989039363,-300.0,0.000547,19]
[321221900,1711989039373,-150.78,0.00054784,120]
[321221902,1711989039382,-327.03,0.00054784,30]
[321221904,1711989039392,-194.55862242,0.00054784,2]
[321221906,1711989039402,-387.13850052,0.00054794,120]
[321221908,1711989039413,-500.0,0.00054794,120]
[321221910,1711989039424,-500.0,0.00054794,120]
[321221912,1711989039433,-500.0,0.00054794,120]
[321221914,1711989039444,-500.0,0.00054794,120]
[321221916,1711989039453,-500.0,0.00054794,120]
[321221918,1711989039463,-500.0,0.00054794,120]
[321221920,1711989039473,-500.0,0.00054794,120]
[321221922,1711989039483,-500.0,0.00054794,120]
[321221924,1711989039493,-500.0,0.00054794,120]
[321221926,1711989039503,-500.0,0.00054794,120]
[321221928,1711989039512,-500.0,0.00054794,120]
[321221930,1711989039522,-500.0,0.00054794,120]
[321221933,1711989039532,-500.0,0.00054794,120]
[321221935,1711989039541,-590.77,0.00054794,120]
[321221937,1711989039551,-542.79189497,0.00054794,120]
[321221939,1711989039560,-500.0,0.00054794,120]
[321221941,1711989039570,-500.0,0.00054794,120]
[321221943,1711989039581,-218.35385258,0.00054794,2]
[321221945,1711989039591,-500.0,0.00054794,120]
[321221947,1711989039601,-151.98479792,0.00054794,120]
[321221949,1711989039611,-500.0,0.00054794,120]
[321221951,1711989039622,-500.0,0.00054794,120]
[321221953,1711989039631,-627.06,0.00054794,120]
[321221955,1711989039641,-642.51,0.00054794,120]
[321221957,1711989039650,-500.0,0.00054794,120]
[321221959,1711989039660,-509.6750329,0.00054794,120]
[321221961,1711989039669,-500.0,0.00054794,120]
[321221963,1711989039679,-500.0,0.00054794,120]
[321221965,1711989039688,-240.63107296,0.00054794,120]
[321221967,1711989039698,-500.0,0.00054794,120]
[321221969,1711989039709,-500.0,0.00054794,120]
[321221971,1711989039718,-500.0,0.00054794,120]
[321221973,1711989039728,-500.0,0.00054794,120]
[321221975,1711989039737,-500.0,0.00054794,120]
[321221977,1711989039746,-500.0,0.00054794,120]
[321221979,1711989039756,-500.0,0.00054794,120]
[321221982,1711989039766,-500.0,0.00054794,120]
[321221985,1711989039775,-568.56,0.00054794,120]
[321221987,1711989039784,-500.0,0.00054794,60]
[321221990,1711989039794,-500.0,0.00054794,120]
[321221993,1711989039809,-500.0,0.00054794,120]
[321221996,1711989039819,-500.0,0.00054794,120]
[321221998,1711989039828,-500.0,0.00054794,120]
[321221999,1711989039837,-517.49215306,0.00054794,120]
[321222000,1711989039846,-228.76411963,0.00054794,120]
[321222001,1711989039855,-500.0,0.00054794,120]
[321222002,1711989039864,-500.0,0.00054794,120]
[321222003,1711989039873,-641.41,0.00054794,120]
[321222004,1711989039882,-500.0,0.00054794,120]
[321222005,1711989039890,-502.16611719,0.00054794,120]
[321222007,1711989039899,-500.0,0.00054794,120]
[321222009,1711989039909,-500.0,0.00054794,120]
[321222011,1711989039918,-500.0,0.00054794,120]
[321222013,1711989039928,-500.0,0.00054794,120]
[321222016,1711989039937,-500.0,0.00054794,120]
[321222017,1711989039947,-376.65213679,0.00054794,120]
[321222020,1711989039957,-500.0,0.00054794,120]
[321222022,1711989039968,-543.05079427,0.00054794,120]
[321222024,1711989039977,-500.0,0.00054794,120]
[321222026,1711989039990,-500.0,0.00054794,120]
[321222028,1711989039999,-500.0,0.00054794,120]
[321222030,1711989040008,-500.0,0.00054794,120]
[321222032,1711989040018,-500.0,0.00054794,120]
[321222034,1711989040027,-500.0,0.00054794,120]
[321222036,1711989040036,-574.69776826,0.00054794,120]
[321222038,1711989040045,-500.0,0.00054794,120]
[321222040,1711989040054,-539.51479292,0.00054794,120]
[321222042,1711989040065,-579.53198335,0.00054794,120]
[321222044,1711989040075,-500.0,0.00054794,120]
[321222046,1711989040086,-500.0,0.00054794,120]
[321222048,1711989040095,-544.90173808,0.00054794,120]
[321222050,1711989040105,-500.0,0.00054794,120]
[321222052,1711989040114,-553.29481088,0.00054794,120]
[321222054,1711989040123,-570.22081024,0.00054794,120]
[321222056,1711989040132,-500.0,0.00054794,120]
[321222058,1711989040142,-500.0,0.00054794,120]
[321222060,1711989040152,-500.0,0.00054794,120]
[321222062,1711989040161,-500.0,0.00054794,120]
[321222064,1711989040170,-500.0,0.00054794,120]
[321222067,1711989040180,-500.0,0.00054794,120]
[321222069,1711989040190,-500.0,0.00054794,120]
[321222071,1711989040199,-500.0,0.00054794,120]
[321222073,1711989040208,-500.0,0.00054794,120]
[321222075,1711989040217,-500.0,0.00054794,120]
[321222077,1711989040226,-500.0,0.00054794,120]
[321222079,1711989040236,-500.0,0.00054794,120]
[321222080,1711989040244,-500.0,0.00054794,120]
[321222082,1711989040253,-500.0,0.00054794,120]
[321222084,1711989040262,-500.0,0.00054794,120]
[321222086,1711989040272,-500.0,0.00054794,120]
[321222088,1711989040281,-500.0,0.00054794,120]
[321222090,1711989040290,-531.06487007,0.00054794,120]
[321222092,1711989040300,-500.0,0.00054794,120]
[321222095,1711989040309,-500.0,0.00054794,120]
[321222097,1711989040319,-500.0,0.00054794,120]
[321222099,1711989040329,-500.0,0.00054794,120]
[321222100,1711989040338,-500.0,0.00054794,120]
[321222103,1711989040347,-500.0,0.00054794,120]
[321222105,1711989040357,-500.0,0.00054794,120]
[321222107,1711989040366,-500.0,0.00054794,120]
[321222109,1711989040375,-513.53616686,0.00054794,120]
[321222111,1711989040384,-500.0,0.00054794,120]
[321222113,1711989040393,-500.0,0.00054794,120]
[321222115,1711989040402,-500.0,0.00054794,120]
[321222117,1711989040412,-500.0,0.00054794,120]
[321222118,1711989040421,-500.0,0.00054794,120]
[321222120,1711989040430,-500.0,0.00054794,120]
[321222122,1711989040439,-500.0,0.00054794,120]
[321222124,1711989040448,-500.0,0.00054794,120]
[321222126,1711989040458,-500.0,0.00054794,120]
[321222128,1711989040467,-500.0,0.00054794,120]
[321222130,1711989040476,-500.0,0.00054794,120]
[321222132,1711989040485,-500.0,0.00054794,120]
[321222134,1711989040494,-500.0,0.00054794,120]
[321222136,1711989040503,-500.0,0.00054794,120]
[321222138,1711989040512,-500.0,0.00054794,120]
[321222140,1711989040521,-500.0,0.00054794,120]
[321222142,1711989040530,-499.42613783,0.00054794,120]
[321222144,1711989040540,-500.0,0.00054794,120]
[321222146,1711989040549,-500.0,0.00054794,120]
[321222148,1711989040558,-500.0,0.00054794,120]
[321222150,1711989040567,-631.8,0.00054794,120]
[321222152,1711989040578,-500.0,0.00054794,120]
[321222154,1711989040587,-500.0,0.00054794,120]
[321222156,1711989040596,-500.0,0.00054794,120]
[321222158,1711989040605,-500.0,0.00054794,120]
[321222160,1711989040614,-500.0,0.00054794,120]
[321222162,1711989040623,-500.0,0.00054794,120]
[321222164,1711989040632,-500.0,0.00054794,120]
[321222166,1711989040642,-500.0,0.00054794,120]
[321222168,1711989040651,-500.0,0.00054794,120]
[321222171,1711989040660,-500.0,0.00054794,120]
[321222172,1711989040670,-500.0,0.00054794,120]
[321222173,1711989040678,-500.0,0.00054794,120]
[321222174,1711989040687,-500.0,0.00054794,120]
[321222175,1711989040696,-500.0,0.00054794,120]
[321222176,1711989040706,-500.0,0.00054794,120]
[321222177,1711989040715,-443.6363686,0.00054794,120]
[321222178,1711989040725,-500.0,0.00054794,120]
[321222179,1711989040734,-500.0,0.00054794,120]
[321222180,1711989040743,-500.0,0.00054794,120]
[321222181,1711989040752,-500.0,0.00054794,120]
[321222182,1711989040762,-500.0,0.00054794,120]
[321222183,1711989040771,-585.88584014,0.00054794,120]
[321222184,1711989040781,-500.0,0.00054794,120]
[321222185,1711989040790,-500.0,0.00054794,120]
[321222186,1711989040800,-500.0,0.00054794,21]
[321222187,1711989040809,-500.0,0.00054794,120]
[321222188,1711989040819,-500.0,0.00054794,120]
[321222189,1711989040830,-500.0,0.00054794,120]
[321222190,1711989040839,-500.0,0.00054794,120]
[321222191,1711989040849,-570.91527303,0.00054794,120]
[321222192,1711989040858,-500.0,0.00054794,120]
[321222193,1711989040868,-500.0,0.00054794,120]
[321222194,1711989040877,-500.0,0.00054794,120]
[321222195,1711989040887,-500.0,0.00054794,120]
[321222196,1711989040897,-500.0,0.00054794,120]